Cogmind - Beta 13 @@@ ROGUE MODE // 2024.04.21 @ 19:04:07 Player: Jason Result: Destroyed by 9V-I62(R) with Subdweller Laser Performance ------------- Evolutions (0) 0 Regions Visited (2) 400 Robots Destroyed (26) 130 Value Destroyed (681) 681 Prototype IDs (0) 0 Alien Tech Used (0) 0 Bonus (0) 0 TOTAL SCORE: 1211 Bonus ------- None Cogmind --------- Core Integrity 0/250 Matter 180/300 Energy 100/100 System Corruption 0% Temperature Cool (6) Movement Rolling (95) Ox1 Location -10/Subcaves Parts ------- > --- POWER (1) -------- (None) > --- PROPULSION (2) --- Wheel > --- UTILITY (2) ------ Medium Storage Unit Core Shielding > --- WEAPON (2) ------- (None) > --- INVENTORY (10) --- Ion Engine Light Ion Engine Signal Interpreter Terrain Scan Processor Medium Laser Assault Rifle Welding Torch Peak State ------------ > --- POWER ------------ Subdweller Power Source > --- PROPULSION ------- Wheel Subdweller Monowheel > --- UTILITY ---------- Medium Storage Unit Terrain Scanner > --- WEAPON ----------- Grenade Launcher Datajack > --- INVENTORY -------- Ion Engine Light Ion Engine Compact Wheel Signal Interpreter Terrain Scan Processor Core Shielding Medium Laser Assault Rifle Grenade Launcher Welding Torch [Rating: 10] Favorites ----------- Power Light Ion Engine Engine Light Ion Engine Propulsion Light Treads Treads Light Treads Wheel Wheel Utility Medium Storage Unit Device Terrain Scanner Storage Medium Storage Unit Protection Core Shielding Weapon Grenade Launcher Energy Gun EM Pulse Gun Ballistic Gun Assault Rifle Launcher Grenade Launcher Special Melee Weapon Datajack Build | -11 -10 -10 ------- Run | Yrd Mat Sub Slots Evolved . | . . . Power . | . . . Propulsion . | . . . Utility . | . . . Weapon . | . . . Parts Attached 21 | 6 9 6 Power 3 | 1 1 1 Engine 3 | 1 1 1 Core . | . . . Reactor . | . . . Propulsion 7 | 2 2 3 Treads 2 | 2 . . Leg . | . . . Wheel 5 | . 2 3 Hover . | . . . Flight . | . . . Utility 4 | 1 2 1 Device 1 | . 1 . Storage 2 | 1 1 . Processor . | . . . Hackware . | . . . Protection 1 | . . 1 Artifact . | . . . Weapon 7 | 2 4 1 Energy Gun 2 | 1 1 . Energy Cannon . | . . . Ballistic Gun 1 | 1 . . Ballistic Cannon . | . . . Launcher 3 | . 2 1 Special Weapon . | . . . Impact Weapon . | . . . Slashing Weapon . | . . . Piercing Weapon . | . . . Special Melee Weapon 1 | . 1 . Unidentified Prototypes . | . . . Parts Lost 10 | . 3 7 Power 2 | . 1 1 Propulsion 3 | . 1 2 Utility 1 | . . 1 Weapon 4 | . 1 3 Highest Loss Streak 7 | . 1 7 To Critical Strikes . | . . . Average Slot Usage (%) 89 | . 86 95 Engine 13 | . 13 13 Treads 9 | . 12 . Wheel 13 | . 9 26 Device 8 | . 7 12 Storage 14 | . 14 14 Energy Gun 3 | . 4 . Ballistic Gun 7 | . 10 . Launcher 10 | . 9 13 Special Melee Weapon 6 | . 3 12 Naked Turns . | . . . Heaviest Build 20 | 14 19 20 Greatest Support 40 | 40 40 30 Greatest Overweight (x) 1 | 1 . 1 Average Overweight (x) . | . . . Largest Inventory Capacity 10 | 8 10 10 Average Capacity 9 | 7 9 10 Most Carried 10 | 4 8 10 Average Carried 6 | 2 6 8 Final Capacity 10 | 8 10 10 Final Carried 8 | 4 8 7 Class Distribution -------------------- 93% | Mutant 6% | Scavenger-Mutant Dominant Class ---------------- Mutant | -10/Materials Mutant | -10/Subcaves Resources | -11 -10 -10 ----------- Run | Yrd Mat Sub Matter Collected 649 | 213 418 18 Remotely . | . . . Salvage Created 652 | . 566 86 Parts 55 | . 48 7 Haulers Intercepted . | . . . Recyclers Shooed 1 | . 1 . Parts Field Recycled . | . . . Retrieved Matter . | . . . Parts Self-Destructed . | . . . Prevented . | . . . Kills | -11 -10 -10 ------- Run | Yrd Mat Sub Combat Hostiles Destroyed 18 | . 15 3 Guns 6 | . 6 . AOE 12 | . 9 3 Classes Destroyed 9 | . 7 2 Builder 2 | . 2 . Tunneler 1 | . 1 . Recycler 1 | . 1 . Operator 1 | . 1 . Watcher 3 | . 3 . Swarmer 3 | . 3 . Grunt 12 | . 12 . Artisan 1 | . . 1 Subdweller 3 | . . 3 Best Kill Streak 4 | . 4 2 Combat Bots Only 4 | . 4 2 Max Kills in Single Turn 2 | . 2 1 Gunslinging 1 | . 1 . Exploded 2 | . 2 1 Melee . | . . . Uniques/NPCs Destroyed . | . . . Combat | -11 -10 -10 -------- Run | Yrd Mat Sub Hostile Shots Fired 103 | . 76 27 Missed 29 | . 20 9 Damage Taken 1227 | . 722 505 Core 254 | . 106 148 Absorbed by Shields . | . . . Redirected to Shielding 22 | . . 22 Core Remaining (%) 100 | 100 . . Volleys Fired 57 | . 47 10 Largest 2 | . 2 1 Hottest 70 | . 70 30 Shots Fired 98 | . 88 10 Gun 70 | . 70 . Cannon . | . . . Launcher 28 | . 18 10 Special . | . . . Kinetic 43 | . 43 . Thermal 16 | . 16 . Explosive 28 | . 18 10 Electromagnetic 11 | . 11 . Robot Hit Streak 14 | . 14 2 Robot Miss Streak 4 | . 4 1 Penetration Max . | . . . Secondary Targets 2 | . 2 . Max Gunslinging Chain 1 | . 1 . Shots Hit Robots 52 | . 50 2 Core Hits 47 | . 40 7 Critical Kills . | . . . Critical Parts Destroyed 1 | . 1 . Critical Strikes 1 | . 1 . Destroy 1 | . 1 . Melee Attacks 5 | . 5 . Impact . | . . . Slashing . | . . . Piercing . | . . . Sneak Attacks 5 | . 5 . Combat Hostiles . | . . . Follow-up Attacks . | . . . Damage Inflicted 1914 | . 1443 471 Guns 544 | . 544 . Cannons . | . . . Explosions 1370 | . 899 471 Melee . | . . . Ramming . | . . . Kinetic 289 | . 289 . Thermal 214 | . 214 . Explosive 1323 | . 852 471 Electromagnetic 88 | . 88 . Impact . | . . . Slashing . | . . . Piercing . | . . . Highest Corruption . | . . . Average Corruption . | . . . Corruption Purged . | . . . Corruption Blocked . | . . . Overload Shots . | . . . Overflow Damage 1 | . . 1 Projectiles . | . . . Explosions 1 | . . 1 Melee . | . . . Knockbacks . | . . . Impact . | . . . Kinetic . | . . . Secondary . | . . . Self-Inflicted Damage 68 | . 34 34 Shots 4 | . 2 2 Rammed . | . . . Targets Rammed . | . . . Kicked . | . . . Crushed . | . . . Highest Temperature 193 | . 193 . Average Temperature 81 | . 81 . Received Heat Transfer 426 | . 369 57 Siege Activations . | . . . Robots Corrupted . | . . . Combat Hostiles . | . . . Parts Fried . | . . . Impact Corruptions . | . . . Robots Melted . | . . . Combat Hostiles . | . . . Parts Melted 1 | . 1 . Heat Transferred 481 | . 481 . Parts Sabotaged . | . . . Parts Stolen . | . . . Parts Stripped . | . . . Power Chain Reactions 1 | . 1 . Alert | -11 -10 -10 ------- Run | Yrd Mat Sub Peak Influence 359 | . 359 . Initial . | . . . Average 199 | . 218 . Maximum Alert Level 1 | . 1 . Low Security (%) 46 | 100 40 . Level 1 53 | . 59 . Level 2 . | . . . Level 3 . | . . . Level 4 . | . . . Level 5 . | . . . High Security . | . . . Max Security . | . . . Squads Dispatched 3 | . 3 . Investigation 3 | . 3 . Extermination . | . . . Reinforcement . | . . . Assault . | . . . Garrison . | . . . Intercept . | . . . Searches Triggered . | . . . Construction Impeded . | . . . Haulers Reinforced . | . . . Active Scanning Responses . | . . . Cargo Convoy Interrupts . | . . . Stealth | -11 -10 -10 --------- Run | Yrd Mat Sub Distress Signals . | . . . Communications Jammed . | . . . Distress Signals . | . . . Times Spotted 28 | . 20 8 Peak Tracking Total 6 | . 6 5 Tactical Retreats . | . . . Traps | -11 -10 -10 ------- Run | Yrd Mat Sub Traps Triggered 1 | . 1 . Indirectly . | . . . Trap Hack Attempts . | . . . Triggered . | . . . Disarmed 6 | . 6 . Reprogrammed . | . . . Reused . | . . . Traps Extracted . | . . . Installed . | . . . Triggered . | . . . Machines | -11 -10 -10 ---------- Run | Yrd Mat Sub Machines Disabled 2 | . 2 . Max in Single Turn 1 | . 1 . Machines Repaired . | . . . Machines Dismantled . | . . . Machines Sabotaged . | . . . Overloaded Fab Kills . | . . . Hacking | -11 -10 -10 --------- Run | Yrd Mat Sub Machines Accessed 5 | . 4 1 Terminals 3 | . 3 . Fabricators . | . . . Repair Stations . | . . . Recycling Units 1 | . 1 . Scanalyzers . | . . . Garrison Access . | . . . Total Hacks 20 | . 17 3 Successful 14 | . 11 3 Failed 6 | . 6 . Catastrophic . | . . . Database Lockouts . | . . . Manual . | . . . Terminals 16 | . 16 . Fabricators . | . . . Repair Stations . | . . . Recycling Units 1 | . 1 . Scanalyzers . | . . . Garrison Access . | . . . Terminal Hacks 13 | . 10 3 Record 3 | . . 3 Emergency Access Points 1 | . 1 . Alert Level 1 | . 1 . Locate Traps 2 | . 2 . Disarm Traps 2 | . 2 . Maintenance Status 2 | . 2 . Investigation Status 1 | . 1 . Zone Layout 1 | . 1 . Fabricator Hacks . | . . . Repair Station Hacks . | . . . Recycling Unit Hacks 1 | . 1 . Report Inventory 1 | . 1 . Scanalyzer . | . . . Garrison Access Hacks . | . . . Unauthorized Hacks . | . . . Terminals . | . . . Fabricators . | . . . Repair Stations . | . . . Recycling Units . | . . . Scanalyzers . | . . . Garrison Access . | . . . Data Cores Recovered 1 | . 1 . Used . | . . . Hacking Detections 3 | . 3 . Full Trace Events 2 | . 2 . Feedback Events . | . . . Feedback Blocked . | . . . Robot Schematics Acquired . | . . . Robots Built . | . . . Authchips . | . . . Time . | . . . Total Robot Build Rating . | . . . Part Schematics Acquired . | . . . Parts Built . | . . . Authchips . | . . . Time . | . . . Total Part Build Rating . | . . . Parts Repaired . | . . . Time . | . . . Parts Recycled . | . . . Recycled Matter . | . . . Retrieved Matter . | . . . Retrieved Components . | . . . Parts Scanalyzed . | . . . Part Schematics Acquired . | . . . Parts Damaged . | . . . Bothacking | -11 -10 -10 ------------ Run | Yrd Mat Sub Used RIF Installer . | . . . Robots Hacked 2 | . 2 . Non-combat 2 | . 2 . Combat . | . . . Robot Hacks Applied 3 | . 3 . parse_system 1 | . 1 . no_distress 1 | . 1 . find_recycling 1 | . 1 . Relay Couplers Released . | . . . Fabnet Peak Effective % . | . . . Robots Rewired . | . . . Allies Hacked . | . . . Hacks Repelled . | . . . Allies | -11 -10 -10 -------- Run | Yrd Mat Sub Total Allies . | . . . Largest Group . | . . . Highest-Rated Group . | . . . Highest-Rated Ally . | . . . Total Orders . | . . . Ally Attacks . | . . . Total Damage . | . . . Kills . | . . . Allies Corrupted . | . . . Allies Melted . | . . . Intel | -11 -10 -10 ------- Run | Yrd Mat Sub Robot Analysis Total . | . . . Derelict Logs Recovered . | . . . Drone Launches . | . . . Drone Recoveries . | . . . Exploration | -11 -10 -10 ------------- Run | Yrd Mat Sub Turns Passed 1089 | 76 771 242 Spaces Moved 662 | 44 384 234 Core 7 | 7 . . Treads 261 | 37 224 . Legs . | . . . Wheels 394 | . 160 234 Hover . | . . . Flight . | . . . Fastest Speed 50 | 50 90 90 Average Speed 117 | 144 130 91 Slowest Speed 160 | 160 160 95 Overloaded Moves . | . . . Propulsion Burnouts . | . . . Robots Hopped . | . . . Cave-ins Triggered . | . . . Exploration Rate (%) 23 | 3 51 16 Regions Visited 2 Branch Regions 1 Pre-discovered Areas . | . . . Known Exits Taken . | . . . Unknown Exits Taken 2 | 1 1 . Scrap Searched . | . . . Spaces Dug 26 | . 26 . Terrain Destroyed 194 | . 127 67 Melee . | . . . Projectile . | . . . AOE 194 | . 127 67 Terrain Rammed . | . . . Walls Destroyed . | . . . Machines Disabled . | . . . Actions | -11 -10 -10 --------- Run | Yrd Mat Sub Total 863 | 53 559 251 Wait 107 | . 107 . Move 660 | 43 383 234 Hop . | . . . Pick Up 10 | 4 6 . Fast Attach 9 | 6 3 . Attach 6 | . 3 3 Detach . | . . . Swap 6 | . 3 3 Drop 3 | . 2 1 Fire 57 | . 47 10 Melee 5 | . 5 . Ram . | . . . Kick . | . . . Crush . | . . . Escape Stasis . | . . . Rewire . | . . . Trap . | . . . Miscellaneous . | . . . Route ------- -11/Scrapyard -10/Materials (discovered 2 exits: [*Min] / *Sub) -10/Subcaves History --------- Turn | Location | Event 12 | -11/Scrapyard | Discovered new exit (range 16) 77 | -11/Scrapyard | Entered Materials 144 | -10/Materials | Discovered new exit (range 16) 305 | -10/Materials | Build established: Mutant 685 | -10/Materials | Discovered new exit (range 10) 848 | -10/Materials | Entered Subcaves 944 | -10/Subcaves | Visited Clippyterm 1072 | -10/Subcaves | Ambushed by Subdweller buried in earth 1072 | -10/Subcaves | Ambushed by Subdweller buried in earth 1073 | -10/Subcaves | Ambushed by Subdweller buried in earth 1074 | -10/Subcaves | Core integrity fell below 50% 1081 | -10/Subcaves | Ambushed by Subdweller buried in earth 1085 | -10/Subcaves | Core integrity fell below 20% 1090 | -10/Subcaves | Destroyed by 9V-I62(R) with Subdweller Laser Last Messages --------------- 01072_ Datajack destroyed. 01072_ Terrain Scanner destroyed. 01073_ WH-HB9(R): "GOODGOOD!" 01073_ 9V-I62(R): "NAT20!" 01074_ SI-B5R(R): "GOODGOOD!" 01075_ Sub. Monowheel destroyed. 01078_ The unstable cave ceiling collapses. 01078_ Grenade Launcher destroyed. 01080_ The unstable cave ceiling collapses. 01080_ WH-HB9(R) suffers critical hit (Meltdown). 01080_ Wheel destroyed. 01081_ SI-B5R(R) destroyed. 01081_ Sub. Power Source destroyed. 01081_ Destroyed Sub. Power Source. 01082_ 77-EYB(R): "ARGHSUB!" 01082_ Grenade Launcher destroyed. 01083_ The unstable cave ceiling collapses. 01087_ 9V-I62(R) affixes Scrap Shield Fragment to Scrap Shield. Map ----- +----------------------------------------------------+ | ????????????????????????????????????????? | | ????????????????????????????????????????? | | ????????????????????????????????????????? | | ????????????????????????????????????????? | | ????????????????????????????????????????? | | ????????????????????????????????????????? | | ?????????????????????? #???????????????? | | ?????????????????????? #??????????????? | | ????????????????????? ??????????????? | | ?????????????????????# ??????????????? | | ?????????????????????# ##?????????????? | | ????????????????????## #?????????????? | | ????????????????????# R ##?????????????? | | ???????????????????## #?????????????? | | ???????????????????# #?????????????? | | ???????????????????? ??????????????? | | ????????????????????? ??????????????? | | ?????????????????????? #??????????????? | | ??????????????????????# #??????????????? | | ?????????????????#???## #??????????????? | | ???????????????????### ####???????????? | | ???????????????????# ; ; #???????????? | | ?????????????????### ; ##??????????? | | ?????????????????# #?#????????? | | ?????????????????# R #??????????? | | ??????????#??????# @ ###?????#????? | | ????????????????# % #???????????? | | ????????????????# #&%R #??????????? | | ????????????????## ###??????????? | | ???????????#???## # ##????????????? | | ??????????????#?# """#?????????????? | | ????????????????##### "= #?????????????? | | ????????#??????????# """=#?????????????? | | ???????????????????# """"#?????????????? | | ?????????????????#?## ""###?????????????? | | ??????????#???????#?# ""#??????????????? | | ????????????????????## "#??????????????? | | ?????????????????#??## #??#???????????? | | ????????????????????# #?#????????????? | | ?????###??############ ##??????????????? | | ??######### # #??????????????? | | ### #?# ##???#??????????? | | # ! ##### #???????????????? | | = " ## #####???#???????????? | | " #?????????#?????????? | | # = """""" ##?????????????#?????? | | ### """######????????????????????? | | ??### ## " #?????????????????????????? | | ???######## #?????????????????????????? | | ????????#?#####?????????????????????????? | +----------------------------------------------------+ Best States ------------- Heat Dissipation 25 Energy Generation 15 Energy Capacity 250 Matter Stores 300 Matter Capacity 300 Sight Range 16 Terrain Scan Range 14 Terrain Scan Density 10 Core Shielding 20 Evasion (%) 42 Recoil Reduction 2 Item Schematics ----------------- None Robot Schematics ------------------ None Fabricated ------------ Nothing Alien Tech Used ----------------- None Achievements -------------- None Challenges ------------ None Game ------ Seed MetafiberShadeComputer Manual? 0 Play Time 00:23:53 Cumulative 24.4 hours Start 2024.04.21 @ 18:27:57 End 2024.04.21 @ 19:04:07 Sessions 1 Manual Loads 0 Difficulty Rogue Special Mode None Game No. 24 Rogue 24 Adventurer 0 Explorer 0 Win Type - Total 0 Types 0/0/0/0/0/0/0/0/0 Lore% 13 Gallery% 19 Achievement% 14 Wizard Run 0 Options --------- Layout 1 ASCII 0 Keyboard 0 Movement Mouse Keybinds 0 Fullscreen 2 Font 24/Smallcaps Map View 50x35 Zoom Use 0% Tactical HUD 1 Map Filters NONE Filters NONE Steam 1 RUN: 1ac07fe1-8819-4d59-b127-ed5808632610